[Event "Titled Tuesday Blitz May 03 Early 2022"]
[White "Jumabayev, Rinat"]
[Black "Samadov, Read"]
[WhiteFideId "13702661"]
[BlackFideId "13417444"]
[WhiteElo "2561"]
[BlackElo "2084"]
[Result "1-0"]
[Round "06"]
[TimeControl "180+1"]
[Date "2022.05.03"]
[WhiteClock "0:00:07"]
[BlackClock "0:00:03"]

1. d4 {[%clk 0:03:00]}  Nf6 {[%clk 0:02:59]} 2. c4 {[%clk 0:03:01]}  e6 {[%clk 0:02:59]} 3. Nf3 {[%clk 0:03:01]}  d5 {[%clk 0:02:59]} 4. g3 {[%clk 0:03:01]}  Bb4+ {[%clk 0:02:59]} 5. Bd2 {[%clk 0:03:01]}  Be7 {[%clk 0:02:59]} 6. Bg2 {[%clk 0:03:01]}  O-O {[%clk 0:03:00]} 7. O-O {[%clk 0:03:02]}  c6 {[%clk 0:03:00]} 8. Qc2 {[%clk 0:03:02]}  b6 {[%clk 0:03:01]} 9. Rd1 {[%clk 0:03:01]}  Nbd7 {[%clk 0:02:58]} 10. b3 {[%clk 0:02:57]}  Ba6 {[%clk 0:02:55]} 11. Bf4 {[%clk 0:02:53]}  Rc8 {[%clk 0:02:52]} 12. Nc3 {[%clk 0:02:53]}  dxc4 {[%clk 0:02:46]} 13. Ne5 {[%clk 0:02:21]}  Nxe5 {[%clk 0:02:17]} 14. dxe5 {[%clk 0:02:20]}  Nd7 {[%clk 0:02:12]} 15. Ne4 {[%clk 0:02:10]}  b5 {[%clk 0:02:07]} 16. bxc4 {[%clk 0:01:52]}  bxc4 {[%clk 0:02:04]} 17. Rd2 {[%clk 0:01:49]}  Qc7 {[%clk 0:01:57]} 18. Nf6+ {[%clk 0:01:37]}  Bxf6 {[%clk 0:01:33]} 19. exf6 {[%clk 0:01:36]}  e5 {[%clk 0:01:33]} 20. fxg7 {[%clk 0:01:35]}  Rfe8 {[%clk 0:01:33]} 21. Bg5 {[%clk 0:01:21]}  Nc5 {[%clk 0:01:28]} 22. Rad1 {[%clk 0:01:07]}  Ne6 {[%clk 0:01:21]} 23. Bf6 {[%clk 0:01:07]}  Nd4 {[%clk 0:01:20]} 24. Qe4 {[%clk 0:00:58]}  c3 {[%clk 0:01:15]} 25. Qh4 {[%clk 0:00:19]}  Nf5 {[%clk 0:00:39]} 26. Qg5 {[%clk 0:00:18]}  Ne7 {[%clk 0:00:23]} 27. Be4 {[%clk 0:00:15]}  Ng6 {[%clk 0:00:20]} 28. Rc2 {[%clk 0:00:11]}  Qa5 {[%clk 0:00:17]} 29. Rdc1 {[%clk 0:00:12]}  Qa4 {[%clk 0:00:17]} 30. Bf5 {[%clk 0:00:10]}  Rb8 {[%clk 0:00:15]} 31. h4 {[%clk 0:00:09]}  Rb2 {[%clk 0:00:13]} 32. Rxc3 {[%clk 0:00:09]}  Rxe2 {[%clk 0:00:12]} 33. h5 {[%clk 0:00:10]}  Qd4 {[%clk 0:00:12]} 34. Re3 {[%clk 0:00:09]}  Rxe3 {[%clk 0:00:11]} 35. Qxe3 {[%clk 0:00:10]}  Ne7 {[%clk 0:00:07]} 36. Bb1 {[%clk 0:00:06]}  Qxe3 {[%clk 0:00:04]} 37. fxe3 {[%clk 0:00:07]}  Nd5 {[%clk 0:00:05]} 38. Rxc6 {[%clk 0:00:07]}  Bb7 {[%clk 0:00:04]} 39. Rd6 {[%clk 0:00:07]}  Nxf6 {[%clk 0:00:04]} 40. Rxf6 {[%clk 0:00:08]}  Kxg7 {[%clk 0:00:05]} 41. Rd6 {[%clk 0:00:07]}  Re7 {[%clk 0:00:05]} 42. h6+ {[%clk 0:00:07]}  Kf8 {[%clk 0:00:06]} 43. Bxh7 {[%clk 0:00:07]}  f6 {[%clk 0:00:03]} 44. Bf5 {[%clk 0:00:07]}  Kf7 {[%clk 0:00:03]} 45. h7 {[%clk 0:00:06]}  Kg7 {[%clk 0:00:03]} 46. Rd8 {[%clk 0:00:07]} 1-0


[Site "https://www.chess.com"]

[Event "Titled Tuesday Blitz May 03 Early 2022"]
[White "Kadam, Om Manish"]
[Black "Aldokhin, Ivan"]
[WhiteFideId "45076294"]
[BlackFideId "24115720"]
[WhiteElo "1729"]
[BlackElo "2231"]
[Result "0-1"]
[Round "06"]
[TimeControl "180+1"]
[Date "2022.05.03"]
[WhiteClock "0:00:10"]
[BlackClock "0:00:09"]

1. Nf3 {[%clk 0:03:00]}  Nf6 {[%clk 0:02:59]} 2. g3 {[%clk 0:03:00]}  g6 {[%clk 0:03:00]} 3. Bg2 {[%clk 0:03:00]}  Bg7 {[%clk 0:03:00]} 4. O-O {[%clk 0:03:01]}  O-O {[%clk 0:03:00]} 5. d4 {[%clk 0:03:01]}  d6 {[%clk 0:03:00]} 6. c4 {[%clk 0:03:01]}  Nbd7 {[%clk 0:03:00]} 7. Nc3 {[%clk 0:03:01]}  e5 {[%clk 0:03:00]} 8. dxe5 {[%clk 0:03:01]}  dxe5 {[%clk 0:03:00]} 9. Qc2 {[%clk 0:03:01]}  Re8 {[%clk 0:02:52]} 10. Rd1 {[%clk 0:02:59]}  c6 {[%clk 0:02:52]} 11. Ng5 {[%clk 0:02:58]}  Qc7 {[%clk 0:02:33]} 12. Nge4 {[%clk 0:02:56]}  Nxe4 {[%clk 0:02:29]} 13. Nxe4 {[%clk 0:02:57]}  Nf6 {[%clk 0:02:22]} 14. Nd6 {[%clk 0:02:55]}  Rd8 {[%clk 0:02:21]} 15. c5 {[%clk 0:02:52]}  Be6 {[%clk 0:02:15]} 16. Bg5 {[%clk 0:02:49]}  h6 {[%clk 0:02:13]} 17. Bxf6 {[%clk 0:02:47]}  Bxf6 {[%clk 0:02:13]} 18. Rd2 {[%clk 0:02:45]}  Rd7 {[%clk 0:02:08]} 19. Rad1 {[%clk 0:02:44]}  Rad8 {[%clk 0:02:05]} 20. b4 {[%clk 0:02:42]}  Be7 {[%clk 0:01:50]} 21. Ne4 {[%clk 0:02:21]}  f5 {[%clk 0:01:45]} 22. Nc3 {[%clk 0:02:16]}  e4 {[%clk 0:01:39]} 23. e3 {[%clk 0:01:53]}  Bf6 {[%clk 0:01:36]} 24. Ne2 {[%clk 0:01:52]}  Rxd2 {[%clk 0:01:11]} 25. Rxd2 {[%clk 0:01:51]}  Rxd2 {[%clk 0:01:11]} 26. Qxd2 {[%clk 0:01:52]}  Qe5 {[%clk 0:01:10]} 27. Nd4 {[%clk 0:01:36]}  Qd5 {[%clk 0:01:09]} 28. a3 {[%clk 0:01:36]}  Bxd4 {[%clk 0:00:54]} 29. Qxd4 {[%clk 0:01:33]}  Qxd4 {[%clk 0:00:52]} 30. exd4 {[%clk 0:01:33]}  Bc4 {[%clk 0:00:52]} 31. f3 {[%clk 0:01:21]}  e3 {[%clk 0:00:28]} 32. f4 {[%clk 0:01:20]}  Kf7 {[%clk 0:00:27]} 33. Bf3 {[%clk 0:01:20]}  Ke6 {[%clk 0:00:26]} 34. h4 {[%clk 0:01:18]}  Kf6 {[%clk 0:00:23]} 35. Kg2 {[%clk 0:01:14]}  g5 {[%clk 0:00:23]} 36. hxg5+ {[%clk 0:00:56]}  hxg5 {[%clk 0:00:24]} 37. Kg1 {[%clk 0:00:48]}  g4 {[%clk 0:00:23]} 38. Bg2 {[%clk 0:00:48]}  Ke6 {[%clk 0:00:21]} 39. a4 {[%clk 0:00:43]}  a6 {[%clk 0:00:19]} 40. a5 {[%clk 0:00:24]}  Bd3 {[%clk 0:00:19]} 41. Bh1 {[%clk 0:00:23]}  Be2 {[%clk 0:00:16]} 42. Bg2 {[%clk 0:00:20]}  Bf3 {[%clk 0:00:14]} 43. Bxf3 {[%clk 0:00:06]}  gxf3 {[%clk 0:00:14]} 44. Kf1 {[%clk 0:00:06]}  Kd5 {[%clk 0:00:13]} 45. Ke1 {[%clk 0:00:06]}  Kxd4 {[%clk 0:00:12]} 46. Kf1 {[%clk 0:00:06]}  Ke4 {[%clk 0:00:10]} 47. Ke1 {[%clk 0:00:06]}  Kd4 {[%clk 0:00:04]} 48. Kf1 {[%clk 0:00:05]}  Kc4 {[%clk 0:00:04]} 49. Ke1 {[%clk 0:00:05]}  Kxb4 {[%clk 0:00:04]} 50. Kf1 {[%clk 0:00:05]}  Kxc5 {[%clk 0:00:04]} 51. Ke1 {[%clk 0:00:06]}  Kd4 {[%clk 0:00:05]} 52. Kf1 {[%clk 0:00:06]}  c5 {[%clk 0:00:05]} 53. g4 {[%clk 0:00:05]}  fxg4 {[%clk 0:00:05]} 54. f5 {[%clk 0:00:06]}  Ke5 {[%clk 0:00:06]} 55. f6 {[%clk 0:00:07]}  Kxf6 {[%clk 0:00:06]} 56. Ke1 {[%clk 0:00:08]}  Ke5 {[%clk 0:00:07]} 57. Kd1 {[%clk 0:00:09]}  g3 {[%clk 0:00:07]} 58. Kc2 {[%clk 0:00:09]}  Kd4 {[%clk 0:00:08]} 59. Kd1 {[%clk 0:00:09]}  g2 {[%clk 0:00:09]} 60. Kc2 {[%clk 0:00:10]}  c4 {[%clk 0:00:09]} 0-1


[Site "https://www.chess.com"]

[Event "Titled Tuesday Blitz May 03 Early 2022"]
[White "Karolczuk, Iwo"]
[Black "Laohawirapap, Prin"]
[WhiteFideId "21816972"]
[BlackFideId "6205003"]
[WhiteElo "2277"]
[BlackElo "1832"]
[Result "0-1"]
[Round "06"]
[TimeControl "180+1"]
[Date "2022.05.03"]
[WhiteClock "0:00:03"]
[BlackClock "0:00:03"]

1. d4 {[%clk 0:03:00]}  Nf6 {[%clk 0:02:56]} 2. c4 {[%clk 0:02:59]}  g6 {[%clk 0:02:56]} 3. Nc3 {[%clk 0:02:59]}  Bg7 {[%clk 0:02:57]} 4. g3 {[%clk 0:02:59]}  O-O {[%clk 0:02:57]} 5. Bg2 {[%clk 0:03:00]}  d6 {[%clk 0:02:57]} 6. Nf3 {[%clk 0:03:00]}  Nc6 {[%clk 0:02:58]} 7. O-O {[%clk 0:03:00]}  e5 {[%clk 0:02:59]} 8. dxe5 {[%clk 0:02:57]}  dxe5 {[%clk 0:03:00]} 9. Qa4 {[%clk 0:02:57]}  Bd7 {[%clk 0:02:38]} 10. Qb3 {[%clk 0:02:46]}  Qc8 {[%clk 0:02:34]} 11. Nd5 {[%clk 0:02:43]}  e4 {[%clk 0:02:18]} 12. Ng5 {[%clk 0:02:23]}  Nxd5 {[%clk 0:02:15]} 13. cxd5 {[%clk 0:02:21]}  Nd4 {[%clk 0:02:15]} 14. Qd1 {[%clk 0:02:18]}  f5 {[%clk 0:01:25]} 15. Be3 {[%clk 0:02:14]}  Nb5 {[%clk 0:01:22]} 16. Qb3 {[%clk 0:02:12]}  Nd6 {[%clk 0:01:22]} 17. Rac1 {[%clk 0:02:08]}  Re8 {[%clk 0:01:18]} 18. Rfd1 {[%clk 0:01:57]}  h6 {[%clk 0:01:11]} 19. Ne6 {[%clk 0:01:54]}  Rxe6 {[%clk 0:00:43]} 20. dxe6 {[%clk 0:01:55]}  Bxe6 {[%clk 0:00:44]} 21. Qc2 {[%clk 0:01:42]}  Nc4 {[%clk 0:00:20]} 22. Bd4 {[%clk 0:01:40]}  Bxd4 {[%clk 0:00:18]} 23. Rxd4 {[%clk 0:01:41]}  Nd6 {[%clk 0:00:17]} 24. a4 {[%clk 0:01:10]}  Ne8 {[%clk 0:00:12]} 25. f3 {[%clk 0:01:08]}  exf3 {[%clk 0:00:10]} 26. Bxf3 {[%clk 0:01:08]}  c6 {[%clk 0:00:11]} 27. e4 {[%clk 0:01:06]}  f4 {[%clk 0:00:06]} 28. gxf4 {[%clk 0:01:02]}  Qc7 {[%clk 0:00:07]} 29. e5 {[%clk 0:01:01]}  Bf5 {[%clk 0:00:03]} 30. Be4 {[%clk 0:01:00]}  Ng7 {[%clk 0:00:01]} 31. Rd6 {[%clk 0:00:57]}  Qb6+ {[%clk 0:00:01]} 32. Kh1 {[%clk 0:00:52]}  Kh7 {[%clk 0:00:02]} 33. Rg1 {[%clk 0:00:49]}  Qe3 {[%clk 0:00:02]} 34. Bxf5 {[%clk 0:00:45]}  Nxf5 {[%clk 0:00:03]} 35. Qg2 {[%clk 0:00:19]}  Nh4 {[%clk 0:00:03]} 36. Qf1 {[%clk 0:00:04]}  Qe4+ {[%clk 0:00:03]} 37. Rg2 {[%clk 0:00:05]}  Rf8 {[%clk 0:00:03]} 38. Rd7+ {[%clk 0:00:04]}  Kh8 {[%clk 0:00:03]} 39. Kg1 {[%clk 0:00:05]}  Rxf4 {[%clk 0:00:03]} 40. Rd8+ {[%clk 0:00:03]}  Kh7 {[%clk 0:00:03]} 41. Rd7+ {[%clk 0:00:03]}  Kg8 {[%clk 0:00:03]} 42. Rd8+ {[%clk 0:00:02]}  Kg7 {[%clk 0:00:02]} 43. Rd7+ {[%clk 0:00:03]}  Kg8 {[%clk 0:00:02]} 44. Rd8+ {[%clk 0:00:03]}  Kf7 {[%clk 0:00:03]} 45. Rd7+ {[%clk 0:00:03]}  Ke6 {[%clk 0:00:03]} 46. Rd6+ {[%clk 0:00:04]}  Kxe5 {[%clk 0:00:04]} 47. Qd1 {[%clk 0:00:03]}  Qxg2# {[%clk 0:00:03]} 0-1


[Site "https://www.chess.com"]

[Event "Titled Tuesday Blitz May 03 Early 2022"]
[White "Keller, Peter"]
[Black "Balabayeva, Xeniya"]
[WhiteFideId "1272105"]
[BlackFideId "13719688"]
[WhiteElo "2275"]
[BlackElo "1941"]
[Result "1-0"]
[Round "06"]
[TimeControl "180+1"]
[Date "2022.05.03"]
[WhiteClock "0:00:08"]
[BlackClock "0:00:09"]

1. e4 {[%clk 0:02:56]}  c6 {[%clk 0:03:00]} 2. d4 {[%clk 0:02:56]}  d5 {[%clk 0:03:00]} 3. exd5 {[%clk 0:02:56]}  cxd5 {[%clk 0:03:01]} 4. Bd3 {[%clk 0:02:55]}  Nc6 {[%clk 0:03:00]} 5. c3 {[%clk 0:02:55]}  Nf6 {[%clk 0:03:00]} 6. Bf4 {[%clk 0:02:52]}  g6 {[%clk 0:03:00]} 7. Nf3 {[%clk 0:02:21]}  Bf5 {[%clk 0:02:49]} 8. Bxf5 {[%clk 0:02:20]}  gxf5 {[%clk 0:02:49]} 9. Qb3 {[%clk 0:02:19]}  Qd7 {[%clk 0:02:39]} 10. Ne5 {[%clk 0:02:19]}  Nxe5 {[%clk 0:02:33]} 11. Bxe5 {[%clk 0:02:20]}  Bg7 {[%clk 0:02:27]} 12. Nd2 {[%clk 0:02:20]}  O-O {[%clk 0:02:18]} 13. Nf3 {[%clk 0:02:15]}  e6 {[%clk 0:01:52]} 14. O-O {[%clk 0:02:14]}  Rac8 {[%clk 0:01:48]} 15. Rae1 {[%clk 0:02:14]}  Ne4 {[%clk 0:01:46]} 16. Bf4 {[%clk 0:02:04]}  Rfe8 {[%clk 0:01:33]} 17. Ne5 {[%clk 0:02:05]}  Qe7 {[%clk 0:01:31]} 18. Re2 {[%clk 0:02:01]}  Nd6 {[%clk 0:01:22]} 19. Nd3 {[%clk 0:01:57]}  Nc4 {[%clk 0:01:19]} 20. h3 {[%clk 0:01:48]}  b6 {[%clk 0:01:18]} 21. f3 {[%clk 0:01:47]}  Qb7 {[%clk 0:01:15]} 22. g4 {[%clk 0:01:43]}  Qd7 {[%clk 0:00:50]} 23. Rfe1 {[%clk 0:01:35]}  fxg4 {[%clk 0:00:40]} 24. hxg4 {[%clk 0:01:36]}  a5 {[%clk 0:00:38]} 25. Kg2 {[%clk 0:01:21]}  f6 {[%clk 0:00:29]} 26. Qd1 {[%clk 0:01:05]}  Re7 {[%clk 0:00:28]} 27. b3 {[%clk 0:00:54]}  Na3 {[%clk 0:00:26]} 28. Qc1 {[%clk 0:00:42]}  Nb5 {[%clk 0:00:25]} 29. Rc2 {[%clk 0:00:27]}  Qc6 {[%clk 0:00:20]} 30. Ree2 {[%clk 0:00:18]}  Nd6 {[%clk 0:00:19]} 31. Bxd6 {[%clk 0:00:16]}  Qxd6 {[%clk 0:00:19]} 32. Qf4 {[%clk 0:00:17]}  Qxf4 {[%clk 0:00:16]} 33. Nxf4 {[%clk 0:00:18]}  Kf7 {[%clk 0:00:15]} 34. c4 {[%clk 0:00:14]}  dxc4 {[%clk 0:00:11]} 35. bxc4 {[%clk 0:00:15]}  Bh6 {[%clk 0:00:10]} 36. Kg3 {[%clk 0:00:14]}  Bxf4+ {[%clk 0:00:09]} 37. Kxf4 {[%clk 0:00:15]}  Rec7 {[%clk 0:00:09]} 38. Rb2 {[%clk 0:00:07]}  Rxc4 {[%clk 0:00:08]} 39. Rxb6 {[%clk 0:00:08]}  Rxd4+ {[%clk 0:00:09]} 40. Re4 {[%clk 0:00:08]}  e5+ {[%clk 0:00:09]} 41. Ke3 {[%clk 0:00:08]} 1-0


[Site "https://www.chess.com"]

[Event "Titled Tuesday Blitz May 03 Early 2022"]
[White "Kim, Sergey"]
[Black "Pein, Jonathan"]
[WhiteFideId "13700570"]
[BlackFideId "417092"]
[WhiteElo "2560"]
[BlackElo "2140"]
[Result "1-0"]
[Round "06"]
[TimeControl "180+1"]
[Date "2022.05.03"]
[WhiteClock "0:00:18"]
[BlackClock "0:00:05"]

1. d4 {[%clk 0:03:00]}  d5 {[%clk 0:02:59]} 2. c4 {[%clk 0:03:01]}  Nc6 {[%clk 0:02:59]} 3. Nc3 {[%clk 0:03:01]}  Nf6 {[%clk 0:02:57]} 4. Nf3 {[%clk 0:02:59]}  Bg4 {[%clk 0:02:56]} 5. e3 {[%clk 0:02:57]}  e6 {[%clk 0:02:53]} 6. h3 {[%clk 0:02:57]}  Bh5 {[%clk 0:02:52]} 7. a3 {[%clk 0:02:56]}  Be7 {[%clk 0:02:51]} 8. Be2 {[%clk 0:02:52]}  O-O {[%clk 0:02:50]} 9. O-O {[%clk 0:02:51]}  dxc4 {[%clk 0:02:48]} 10. Bxc4 {[%clk 0:02:50]}  e5 {[%clk 0:02:31]} 11. d5 {[%clk 0:02:40]}  Na5 {[%clk 0:02:26]} 12. Be2 {[%clk 0:02:40]}  Bxf3 {[%clk 0:02:24]} 13. Bxf3 {[%clk 0:02:37]}  Bd6 {[%clk 0:02:20]} 14. Be2 {[%clk 0:02:30]}  b6 {[%clk 0:02:18]} 15. e4 {[%clk 0:02:19]}  Nb7 {[%clk 0:02:17]} 16. Bg5 {[%clk 0:02:16]}  h6 {[%clk 0:02:15]} 17. Bh4 {[%clk 0:02:15]}  a5 {[%clk 0:02:14]} 18. Rc1 {[%clk 0:02:00]}  g5 {[%clk 0:02:14]} 19. Bg3 {[%clk 0:01:59]}  Nc5 {[%clk 0:02:14]} 20. Bf3 {[%clk 0:01:45]}  a4 {[%clk 0:02:09]} 21. Re1 {[%clk 0:01:40]}  Qd7 {[%clk 0:02:06]} 22. Bg4 {[%clk 0:01:34]}  Nxg4 {[%clk 0:02:04]} 23. hxg4 {[%clk 0:01:34]}  Nb3 {[%clk 0:01:55]} 24. Rc2 {[%clk 0:01:33]}  Nd4 {[%clk 0:01:56]} 25. Rd2 {[%clk 0:01:33]}  f6 {[%clk 0:01:51]} 26. f3 {[%clk 0:01:27]}  Bc5 {[%clk 0:01:48]} 27. Bf2 {[%clk 0:01:26]}  h5 {[%clk 0:01:47]} 28. gxh5 {[%clk 0:01:24]}  Kg7 {[%clk 0:01:43]} 29. g4 {[%clk 0:01:23]}  Rh8 {[%clk 0:01:38]} 30. Kg2 {[%clk 0:01:22]}  b5 {[%clk 0:01:24]} 31. Bxd4 {[%clk 0:01:17]}  Bxd4 {[%clk 0:01:23]} 32. Ne2 {[%clk 0:01:17]}  Be3 {[%clk 0:01:19]} 33. Rc2 {[%clk 0:01:13]}  Bf4 {[%clk 0:01:18]} 34. Rg1 {[%clk 0:01:09]}  Kh6 {[%clk 0:01:11]} 35. Ng3 {[%clk 0:01:05]}  Bxg3 {[%clk 0:01:10]} 36. Kxg3 {[%clk 0:01:06]}  Rhd8 {[%clk 0:01:08]} 37. Qc1 {[%clk 0:01:03]}  Rab8 {[%clk 0:00:58]} 38. Rc6 {[%clk 0:01:03]}  Rb6 {[%clk 0:00:56]} 39. Rxc7 {[%clk 0:01:02]}  Qd6 {[%clk 0:00:56]} 40. Rg2 {[%clk 0:01:01]}  b4 {[%clk 0:00:54]} 41. Rgc2 {[%clk 0:00:57]}  bxa3 {[%clk 0:00:51]} 42. bxa3 {[%clk 0:00:57]}  Rb3 {[%clk 0:00:41]} 43. R2c6 {[%clk 0:00:57]}  Qf8 {[%clk 0:00:37]} 44. Ra6 {[%clk 0:00:35]}  Rdb8 {[%clk 0:00:14]} 45. Raa7 {[%clk 0:00:33]}  Rxf3+ {[%clk 0:00:08]} 46. Kxf3 {[%clk 0:00:31]}  Rb3+ {[%clk 0:00:08]} 47. Kg2 {[%clk 0:00:29]}  Qg8 {[%clk 0:00:02]} 48. Rh7+ {[%clk 0:00:26]}  Qxh7 {[%clk 0:00:02]} 49. Rxh7+ {[%clk 0:00:26]}  Kxh7 {[%clk 0:00:03]} 50. d6 {[%clk 0:00:22]}  Rd3 {[%clk 0:00:03]} 51. Qc7+ {[%clk 0:00:22]}  Kh6 {[%clk 0:00:03]} 52. Qf7 {[%clk 0:00:20]}  Rd2+ {[%clk 0:00:04]} 53. Kf1 {[%clk 0:00:19]}  Rxd6 {[%clk 0:00:05]} 54. Qg6# {[%clk 0:00:18]} 1-0


[Site "https://www.chess.com"]

[Event "Titled Tuesday Blitz May 03 Early 2022"]
[White "Kouskoutis, Georgios-Alexandros"]
[Black "D`Arruda, Ricardo D."]
[WhiteFideId "4234049"]
[BlackFideId "100692"]
[WhiteElo "2130"]
[BlackElo "2400"]
[Result "0-1"]
[Round "06"]
[TimeControl "180+1"]
[Date "2022.05.03"]
[WhiteClock "0:00:03"]
[BlackClock "0:00:47"]

1. c4 {[%clk 0:03:00]}  e5 {[%clk 0:02:55]} 2. g3 {[%clk 0:03:01]}  Nc6 {[%clk 0:02:55]} 3. Bg2 {[%clk 0:03:01]}  Nf6 {[%clk 0:02:56]} 4. Nc3 {[%clk 0:03:02]}  Bb4 {[%clk 0:02:56]} 5. e4 {[%clk 0:03:02]}  d6 {[%clk 0:02:54]} 6. Nge2 {[%clk 0:03:01]}  O-O {[%clk 0:02:54]} 7. O-O {[%clk 0:03:01]}  a5 {[%clk 0:02:52]} 8. d3 {[%clk 0:02:58]}  h6 {[%clk 0:02:47]} 9. h3 {[%clk 0:02:57]}  Bc5 {[%clk 0:02:47]} 10. Kh2 {[%clk 0:02:57]}  Ne7 {[%clk 0:02:44]} 11. f4 {[%clk 0:02:49]}  c6 {[%clk 0:02:39]} 12. d4 {[%clk 0:02:22]}  exd4 {[%clk 0:02:38]} 13. Nxd4 {[%clk 0:02:23]}  Ng6 {[%clk 0:02:27]} 14. Be3 {[%clk 0:02:07]}  Re8 {[%clk 0:02:26]} 15. Qd3 {[%clk 0:02:07]}  Bd7 {[%clk 0:02:12]} 16. Rad1 {[%clk 0:02:01]}  Qc7 {[%clk 0:02:10]} 17. Rfe1 {[%clk 0:02:00]}  Rad8 {[%clk 0:02:09]} 18. Bc1 {[%clk 0:01:50]}  Bc8 {[%clk 0:02:08]} 19. b3 {[%clk 0:01:44]}  h5 {[%clk 0:01:57]} 20. Nf5 {[%clk 0:01:21]}  h4 {[%clk 0:01:49]} 21. Nxh4 {[%clk 0:01:08]}  Nxh4 {[%clk 0:01:47]} 22. gxh4 {[%clk 0:01:09]}  Bf2 {[%clk 0:01:45]} 23. Rf1 {[%clk 0:01:04]}  Bxh4 {[%clk 0:01:45]} 24. Qf3 {[%clk 0:00:55]}  Nh7 {[%clk 0:01:33]} 25. Kh1 {[%clk 0:00:51]}  Qe7 {[%clk 0:01:31]} 26. Bb2 {[%clk 0:00:34]}  Bf6 {[%clk 0:01:30]} 27. Rfe1 {[%clk 0:00:33]}  Nf8 {[%clk 0:01:25]} 28. e5 {[%clk 0:00:27]}  dxe5 {[%clk 0:01:22]} 29. Ne4 {[%clk 0:00:24]}  Bh4 {[%clk 0:01:19]} 30. fxe5 {[%clk 0:00:17]}  Bxe1 {[%clk 0:01:19]} 31. Rxe1 {[%clk 0:00:18]}  Ng6 {[%clk 0:01:17]} 32. Qg3 {[%clk 0:00:12]}  Qh4 {[%clk 0:01:15]} 33. Qe3 {[%clk 0:00:10]}  Nf4 {[%clk 0:01:04]} 34. Rg1 {[%clk 0:00:10]}  Rd3 {[%clk 0:00:59]} 35. Nf6+ {[%clk 0:00:05]}  Qxf6 {[%clk 0:00:57]} 36. Qxd3 {[%clk 0:00:02]}  Nxd3 {[%clk 0:00:57]} 37. exf6 {[%clk 0:00:02]}  Nxb2 {[%clk 0:00:57]} 38. Bf3 {[%clk 0:00:01]}  g6 {[%clk 0:00:56]} 39. h4 {[%clk 0:00:01]}  Nd3 {[%clk 0:00:54]} 40. h5 {[%clk 0:00:02]}  Re1 {[%clk 0:00:54]} 41. hxg6 {[%clk 0:00:01]}  Rxg1+ {[%clk 0:00:51]} 42. Kxg1 {[%clk 0:00:02]}  fxg6 {[%clk 0:00:51]} 43. Be4 {[%clk 0:00:02]}  Ne5 {[%clk 0:00:51]} 44. Kf2 {[%clk 0:00:02]}  Kf7 {[%clk 0:00:51]} 45. Ke3 {[%clk 0:00:03]}  Kxf6 {[%clk 0:00:51]} 46. Kd4 {[%clk 0:00:03]}  b6 {[%clk 0:00:51]} 47. c5 {[%clk 0:00:03]}  b5 {[%clk 0:00:49]} 48. a3 {[%clk 0:00:03]}  Be6 {[%clk 0:00:48]} 49. b4 {[%clk 0:00:03]}  a4 {[%clk 0:00:48]} 50. Bh1 {[%clk 0:00:02]}  g5 {[%clk 0:00:48]} 51. Bg2 {[%clk 0:00:02]}  g4 {[%clk 0:00:49]} 52. Bh1 {[%clk 0:00:03]}  Bd5 {[%clk 0:00:47]} 0-1


[Site "https://www.chess.com"]

[Event "Titled Tuesday Blitz May 03 Early 2022"]
[White "Kozin, Yuri"]
[Black "Shtyka, Sergey"]
[WhiteFideId "4129920"]
[BlackFideId "4138465"]
[WhiteElo "2580"]
[BlackElo "2014"]
[Result "1-0"]
[Round "06"]
[TimeControl "180+1"]
[Date "2022.05.03"]
[WhiteClock "0:01:10"]
[BlackClock "0:00:01"]

1. e4 {[%clk 0:03:00]}  c5 {[%clk 0:02:54]} 2. Nf3 {[%clk 0:03:00]}  d6 {[%clk 0:02:52]} 3. d4 {[%clk 0:03:00]}  cxd4 {[%clk 0:02:52]} 4. Nxd4 {[%clk 0:03:01]}  Nf6 {[%clk 0:02:53]} 5. Nc3 {[%clk 0:03:02]}  g6 {[%clk 0:02:53]} 6. Bc4 {[%clk 0:03:01]}  Bg7 {[%clk 0:02:52]} 7. Bb3 {[%clk 0:03:01]}  O-O {[%clk 0:02:52]} 8. h3 {[%clk 0:03:02]}  Nc6 {[%clk 0:02:53]} 9. Be3 {[%clk 0:03:01]}  Bd7 {[%clk 0:02:45]} 10. O-O {[%clk 0:03:00]}  Rc8 {[%clk 0:02:44]} 11. Re1 {[%clk 0:03:00]}  a6 {[%clk 0:02:43]} 12. Nf3 {[%clk 0:02:58]}  Na5 {[%clk 0:02:40]} 13. Bg5 {[%clk 0:02:56]}  Nc4 {[%clk 0:02:37]} 14. Bxc4 {[%clk 0:02:56]}  Rxc4 {[%clk 0:02:37]} 15. Qd3 {[%clk 0:02:56]}  Rc5 {[%clk 0:02:33]} 16. Rad1 {[%clk 0:02:55]}  Bc6 {[%clk 0:02:00]} 17. e5 {[%clk 0:02:30]}  Bxf3 {[%clk 0:01:59]} 18. Qxf3 {[%clk 0:02:26]}  Nh5 {[%clk 0:00:47]} 19. exd6 {[%clk 0:02:22]}  Rxg5 {[%clk 0:00:47]} 20. dxe7 {[%clk 0:02:22]}  Qc8 {[%clk 0:00:39]} 21. exf8=Q+ {[%clk 0:02:14]}  Bxf8 {[%clk 0:00:39]} 22. Nd5 {[%clk 0:02:04]}  Qxc2 {[%clk 0:00:34]} 23. Ne7+ {[%clk 0:01:29]}  Bxe7 {[%clk 0:00:28]} 24. Rxe7 {[%clk 0:01:30]}  Rf5 {[%clk 0:00:16]} 25. Rd8+ {[%clk 0:01:29]}  Kg7 {[%clk 0:00:16]} 26. Qc3+ {[%clk 0:01:29]}  Qxc3 {[%clk 0:00:16]} 27. bxc3 {[%clk 0:01:30]}  Nf4 {[%clk 0:00:13]} 28. c4 {[%clk 0:01:13]}  Ne6 {[%clk 0:00:09]} 29. Rdd7 {[%clk 0:01:13]}  b5 {[%clk 0:00:08]} 30. Rxe6 {[%clk 0:01:12]}  bxc4 {[%clk 0:00:06]} 31. Rc6 {[%clk 0:01:10]}  Rd5 {[%clk 0:00:01]} 32. Rxd5 {[%clk 0:01:10]} 1-0


[Site "https://www.chess.com"]